fUST/lending_fUST_20250929
["ID","MTS","AMOUNT","RATE_DAILY","PERIOD"]
[388413707,1759161046273,-151.0,0.00024044,7]
[388413709,1759161046283,-151.0,0.00024044,7]
[388413711,1759161046293,-811.93,0.00024044,2]
[388413713,1759161046302,-151.0,0.00024044,7]
[388413715,1759161046312,-480.0,0.00024044,2]
[388413717,1759161046322,-5606.18,0.00024044,2]
[388413719,1759161046331,-521.36,0.00024044,2]
[388413721,1759161046341,-562.06,0.00024044,2]
[388413723,1759161046350,-2651.6,0.00024044,2]
[388413726,1759161046360,-626.29,0.00024044,2]
[388413728,1759161046369,-1060.0,0.00024044,2]
[388413730,1759161046379,-677.98,0.00024044,2]
[388413732,1759161046388,-480.0,0.00024044,2]
[388413734,1759161046397,-2967.25,0.00024044,2]
[388413736,1759161046406,-502.23,0.00024044,2]
[388413738,1759161046416,-884.05,0.00024044,2]
[388413739,1759161046425,-830.83,0.00024044,2]
[388413742,1759161046435,-731.1,0.00024044,2]
[388413743,1759161046445,-480.0,0.00024045,2]
[388413744,1759161046454,-480.0,0.00024045,2]
[388413745,1759161046465,-1544.48,0.00024045,2]
[388413746,1759161046474,-500.0,0.00024047,2]
[388413747,1759161046484,-151.0,0.000241,9]
[388413748,1759161046493,-176.55544412,0.000241,2]
[388413749,1759161046503,-200.0,0.00024109,2]
[388413750,1759161046512,-480.0,0.00024146,2]
[388413751,1759161046522,-604.03,0.00024146,2]
[388413752,1759161046531,-480.0,0.00024146,2]
[388413753,1759161046540,-480.0,0.00024146,2]
[388413754,1759161046549,-480.0,0.00024146,2]
[388413755,1759161046559,-480.0,0.00024146,2]
[388413756,1759161046568,-480.0,0.00024146,2]
[388413757,1759161046577,-480.0,0.00024146,2]
[388413758,1759161046587,-624.3,0.00024146,2]
[388413759,1759161046596,-362.16879522,0.00024146,2]
[388413760,1759161046606,-644.65,0.00024146,2]
[388413761,1759161046615,-480.0,0.00024146,2]
[388413762,1759161046626,-291.36578969,0.00024146,2]
[388413763,1759161046635,-480.0,0.00024146,2]
[388413764,1759161046644,-480.0,0.00024146,2]
[388413765,1759161046653,-485.38146765,0.00024146,2]
[388413766,1759161046663,-797.26,0.00024146,2]
[388413767,1759161046672,-655.78,0.00024146,2]
[388413768,1759161046683,-983.15,0.00024146,2]
[388413769,1759161046692,-1202.69,0.00024146,2]
[388413770,1759161046701,-480.0,0.00024146,2]
[388413771,1759161046711,-480.0,0.00024146,2]
[388413772,1759161046720,-728.55,0.00024146,2]
[388413773,1759161046729,-703.92,0.00024146,2]
[388413774,1759161046739,-480.0,0.00024146,2]
[388413775,1759161046749,-480.0,0.00024146,2]
[388413776,1759161046759,-376.9,0.00024146,2]
[388413777,1759161046770,-380.95,0.00024146,2]
[388413778,1759161046779,-480.0,0.00024146,2]
[388413779,1759161046788,-480.0,0.00024146,2]
[388413780,1759161046798,-2054.92,0.00024146,2]
[388413781,1759161046807,-480.0,0.00024146,2]
[388413782,1759161046817,-480.0,0.00024146,2]
[388413783,1759161046827,-480.0,0.00024146,2]
[388413784,1759161046837,-480.0,0.00024146,2]
[388413785,1759161046847,-480.0,0.00024146,2]
[388413786,1759161046856,-1439.94,0.00024146,2]
[388413787,1759161046866,-480.0,0.00024146,2]
[388413788,1759161046876,-480.0,0.00024146,2]
[388413789,1759161046885,-1143.63,0.00024146,2]
[388413790,1759161046895,-480.0,0.00024146,2]
[388413791,1759161046904,-200.0,0.00024146,2]
[388413792,1759161046913,-157.868401,0.00024146,2]
[388413793,1759161046923,-536.57,0.00024146,2]
[388413794,1759161046932,-605.61,0.00024146,2]
[388413795,1759161046942,-480.0,0.00024146,2]
[388413796,1759161046951,-365.76873583,0.00024146,2]
[388413797,1759161046960,-500.0,0.00024146,2]
[388413798,1759161046970,-480.0,0.00024146,2]
[388413799,1759161046979,-480.0,0.00024146,2]
[388413800,1759161046988,-480.0,0.00024146,2]
[388413802,1759161046998,-480.0,0.00024146,2]
[388413803,1759161047008,-480.0,0.00024146,2]
[388413805,1759161047016,-649.35,0.00024146,2]
[388413806,1759161047026,-382.15733067,0.00024146,2]
[388413807,1759161047035,-480.0,0.00024146,2]
[388413808,1759161047045,-862.61,0.00024146,2]
[388413810,1759161047212,-480.0,0.00024146,2]
[388413811,1759161047224,-480.0,0.00024146,2]
[388413812,1759161047234,-640.96,0.00024146,2]
[388413813,1759161047243,-480.0,0.00024146,2]
[388413814,1759161047254,-480.0,0.00024146,2]
[388413815,1759161047264,-480.0,0.00024146,2]
[388413816,1759161047274,-2371.72,0.00024146,2]
[388413817,1759161047283,-631.12,0.00024146,2]
[388413818,1759161047293,-480.0,0.00024146,2]
[388413819,1759161047303,-1038.88,0.00024146,2]
[388413820,1759161047313,-480.0,0.00024146,2]
[388413821,1759161047322,-1604.21,0.00024146,2]
[388413822,1759161047332,-724.44,0.00024146,2]
[388413823,1759161047341,-480.0,0.00024146,2]
[388413824,1759161047351,-651.54,0.00024146,2]
[388413825,1759161047360,-564.36,0.00024146,2]
[388413826,1759161047370,-480.0,0.00024146,2]
[388413827,1759161047379,-814.77,0.00024146,2]
[388413828,1759161047388,-641.1,0.00024146,2]
[388413829,1759161047398,-500.0,0.00024146,2]
[388413830,1759161047407,-601.27,0.00024146,2]
[388413831,1759161047417,-480.0,0.00024146,2]
[388413832,1759161047426,-480.0,0.00024146,2]
[388413833,1759161047435,-760.04,0.00024146,2]
[388413834,1759161047445,-480.0,0.00024146,2]
[388413835,1759161047454,-480.0,0.00024146,2]
[388413836,1759161047464,-2257.54,0.00024146,2]
[388413837,1759161047473,-480.0,0.00024146,2]
[388413838,1759161047483,-486.28,0.00024146,2]
[388413839,1759161047492,-224.16,0.00024146,2]
[388413840,1759161047503,-480.0,0.00024146,2]
[388413841,1759161047512,-480.0,0.00024146,2]
[388413842,1759161047522,-498.3,0.00024146,2]
[388413843,1759161047544,-647.24,0.00024146,2]
[388413844,1759161047554,-480.0,0.00024146,2]
[388413845,1759161047564,-505.97,0.00024146,2]
[388413846,1759161047575,-480.0,0.00024146,2]
[388413847,1759161047585,-730.5,0.00024146,2]
[388413848,1759161047594,-633.37,0.00024146,2]
[388413849,1759161047606,-664.36,0.00024146,2]
[388413850,1759161047616,-155.38732257,0.00024146,2]
[388413851,1759161047627,-480.0,0.00024146,2]
[388413852,1759161047636,-643.61,0.00024146,2]
[388413853,1759161047646,-480.0,0.00024146,2]
[388413854,1759161047656,-708.35,0.00024146,2]
[388413855,1759161047666,-480.0,0.00024146,2]
[388413856,1759161047677,-480.0,0.00024146,2]
[388413857,1759161047687,-480.0,0.00024146,2]
[388413858,1759161047696,-480.0,0.00024146,2]
[388413859,1759161047706,-316.80938518,0.00024146,2]
[388413860,1759161047716,-480.0,0.00024146,2]
[388413861,1759161047726,-480.0,0.00024146,2]
[388413862,1759161047736,-480.0,0.00024146,2]
[388413863,1759161047747,-693.38,0.00024146,2]
[388413864,1759161047757,-480.0,0.00024146,2]
[388413865,1759161047767,-640.7,0.00024146,2]
[388413866,1759161047777,-1345.2,0.00024146,2]
[388413867,1759161047787,-686.56,0.00024146,2]
[388413868,1759161047797,-480.0,0.00024146,2]
[388413869,1759161047807,-655.86,0.00024146,2]
[388413870,1759161047818,-635.45,0.00024146,2]
[388413871,1759161047827,-707.71,0.00024146,2]
[388413872,1759161047838,-480.0,0.00024146,2]
[388413873,1759161047848,-480.0,0.00024146,2]
[388413874,1759161047858,-480.0,0.00024146,2]
[388413875,1759161047870,-619.68,0.00024146,2]
[388413876,1759161047880,-480.0,0.00024146,2]
[388413877,1759161047890,-480.0,0.00024146,2]
[388413878,1759161047900,-1613.5,0.00024146,2]
[388413879,1759161047910,-511.09,0.00024146,2]
[388413880,1759161047920,-480.0,0.00024146,2]
[388413881,1759161047930,-480.0,0.00024146,2]
[388413882,1759161047940,-480.0,0.00024146,2]
[388413883,1759161047950,-480.0,0.00024146,2]
[388413884,1759161047960,-1084.25,0.00024146,2]
[388413885,1759161047970,-805.68,0.00024146,2]
[388413886,1759161047979,-480.0,0.00024146,2]
[388413887,1759161047989,-480.0,0.00024146,2]
[388413888,1759161048000,-532.56,0.00024146,2]
[388413889,1759161048010,-2009.29,0.00024146,2]
[388413890,1759161048021,-941.55,0.00024146,2]
[388413891,1759161048031,-702.93,0.00024146,2]
[388413892,1759161048041,-605.69,0.00024146,2]
[388413893,1759161048052,-490.09,0.00024146,2]
[388413894,1759161048071,-1317.39,0.00024146,2]
[388413895,1759161048081,-568.24,0.00024146,2]
[388413896,1759161048091,-291.75321998,0.00024146,2]
[388413897,1759161048103,-607.45,0.00024146,2]
[388413898,1759161048113,-480.0,0.00024146,2]
[388413899,1759161048123,-480.0,0.00024146,2]
[388413900,1759161048136,-480.0,0.00024146,2]
[388413901,1759161048145,-480.0,0.00024146,2]
[388413902,1759161048156,-480.0,0.00024146,2]
[388413903,1759161048167,-482.22,0.00024146,2]
[388413904,1759161048177,-515.66,0.00024146,2]
[388413905,1759161048187,-541.16,0.00024146,2]
[388413906,1759161048197,-661.76,0.00024146,2]
[388413907,1759161048207,-480.0,0.00024146,2]
[388413908,1759161048217,-523.99,0.00024146,2]
[388413909,1759161048227,-544.08,0.00024146,2]
[388413910,1759161048237,-480.0,0.00024146,2]
[388413911,1759161048247,-480.0,0.00024146,2]
[388413912,1759161048259,-308.404684,0.00024146,2]
[388413913,1759161048269,-480.0,0.00024146,2]
[388413914,1759161048278,-678.77,0.00024146,2]
[388413915,1759161048288,-527.94,0.00024146,2]
[388413916,1759161048298,-480.0,0.00024146,2]
[388413917,1759161048308,-480.0,0.00024146,2]
[388413918,1759161048318,-480.0,0.00024146,2]
[388413919,1759161048328,-151.0,0.00024146,7]
[388413920,1759161048337,-480.0,0.00024146,2]
[388413921,1759161048347,-151.0,0.00024146,7]
[388413922,1759161048357,-157.967243,0.00024146,7]
[388413923,1759161048367,-151.0,0.00024146,7]
[388413924,1759161048376,-151.0,0.00024146,7]
[388413925,1759161048386,-151.0,0.00024146,7]
[388413926,1759161048395,-628.98,0.00024146,2]
[388413927,1759161048405,-151.0,0.00024146,7]
[388413928,1759161048414,-151.0,0.00024146,7]
[388413929,1759161048424,-623.258742,0.00024146,7]
[388413930,1759161048434,-594.241342,0.00024146,7]
[388413931,1759161048443,-623.258742,0.00024146,7]
[388413932,1759161048453,-594.241342,0.00024146,7]
[388413933,1759161048463,-623.258742,0.00024146,7]
[388413934,1759161048472,-623.258742,0.00024146,7]
[388413935,1759161048481,-594.241342,0.00024146,7]
[388413936,1759161048491,-594.241342,0.00024146,7]
[388413937,1759161048502,-480.0,0.00024146,2]
[388413938,1759161048511,-151.0,0.00024146,7]
[388413939,1759161048521,-1931.899091,0.00024146,7]
[388413940,1759161048531,-151.0,0.00024146,7]
[388413941,1759161048540,-1931.899091,0.00024146,7]
[388413942,1759161048549,-1931.899091,0.00024146,7]
[388413943,1759161048559,-1931.899091,0.00024146,7]
[388413944,1759161048569,-233.87608454,0.00024146,7]
[388413945,1759161048578,-151.0,0.00024146,7]
[388413946,1759161048588,-151.0,0.00024146,7]
[388413947,1759161048597,-151.0,0.00024146,7]
[388413948,1759161048607,-658.0,0.00024167,2]
[388413949,1759161048616,-151.0,0.000242,9]
[388413950,1759161048627,-151.0,0.000242,10]
[388413951,1759161048636,-568.7,0.00024216,2]
[388413952,1759161048646,-840.01,0.00024216,2]
[388413953,1759161048656,-1205.11,0.00024216,2]
[388413954,1759161048666,-2489.6,0.00024216,2]
[388413955,1759161048676,-480.0,0.00024216,2]
[388413956,1759161048685,-5185.97,0.00024216,2]
[388413957,1759161048695,-480.0,0.00024216,2]
[388413958,1759161048704,-874.96,0.00024216,2]
[388413959,1759161048713,-819.07,0.00024216,2]
[388413960,1759161048723,-480.0,0.00024216,2]
[388413961,1759161048733,-600.0,0.00024243,20]
[388413962,1759161048743,-480.0,0.00024263,2]
[388413963,1759161048755,-480.0,0.00024263,2]
[388413964,1759161048765,-480.0,0.00024263,2]
[388413965,1759161048776,-151.0,0.000243,5]
[388413966,1759161048786,-887.0,0.00024306,2]
[388413967,1759161048796,-1721.76135579,0.0002431,2]
[388413968,1759161048806,-480.0,0.00024312,2]
[388413969,1759161048816,-480.0,0.00024312,2]
[388413970,1759161048826,-480.0,0.00024312,2]
[388413971,1759161048835,-763.67,0.00024312,2]
[388413972,1759161048846,-480.0,0.00024312,2]
[388413973,1759161048856,-4739.14,0.00024312,2]
[388413974,1759161048866,-549.65,0.00024312,2]
[388413975,1759161048877,-480.0,0.00024312,2]
[388413976,1759161048887,-1776.01,0.00024312,2]
[388413977,1759161048897,-480.0,0.00024312,2]
[388413978,1759161048907,-480.0,0.00024312,2]
[388413979,1759161048917,-522.2,0.00024314,2]
[388413980,1759161048929,-480.0,0.00024314,2]
[388413981,1759161048938,-480.0,0.00024314,2]
[388413982,1759161048948,-480.0,0.00024314,2]
[388413983,1759161048958,-480.0,0.00024314,2]
[388413984,1759161048969,-599.11,0.00024314,2]
[388413985,1759161048979,-480.0,0.00024314,2]
[388413986,1759161048989,-1118.42,0.00024314,2]
[388413987,1759161049001,-523.31,0.00024314,2]
[388413988,1759161049012,-492.97,0.00024314,2]
[388413989,1759161049023,-496.98,0.00024314,2]
[388413990,1759161049032,-480.0,0.00024314,2]
[388413991,1759161049043,-667.01,0.00024314,2]
[388413992,1759161049057,-480.0,0.00024314,2]
[388413993,1759161049077,-479.09602639,0.00024314,2]
[388413994,1759161049099,-480.0,0.00024314,2]
[388413995,1759161049112,-480.0,0.00024314,2]
[388413996,1759161049122,-480.0,0.00024314,2]
[388413997,1759161049132,-480.0,0.00024314,2]
[388413998,1759161049143,-480.0,0.00024314,2]
[388413999,1759161049153,-699.64,0.00024314,2]
[388414000,1759161049163,-679.64,0.00024314,2]
[388414001,1759161049173,-480.0,0.00024314,2]
[388414002,1759161049183,-480.0,0.00024314,2]
[388414003,1759161049193,-554.51,0.00024314,2]
[388414004,1759161049203,-480.0,0.00024314,2]
[388414005,1759161049213,-480.0,0.00024314,2]
[388414006,1759161049222,-480.0,0.00024314,2]
[388414007,1759161049232,-480.0,0.00024314,2]
[388414008,1759161049242,-480.0,0.00024314,2]
[388414009,1759161049252,-729.58,0.00024314,2]
[388414010,1759161049263,-478.26173736,0.00024314,2]
[388414011,1759161049272,-671.93,0.00024314,2]
[388414012,1759161049282,-596.77,0.00024314,2]
[388414013,1759161049292,-544.63,0.00024314,2]
[388414014,1759161049303,-480.0,0.00024314,2]
[388414015,1759161049313,-640.8,0.00024314,2]
[388414016,1759161049323,-480.0,0.00024314,2]
[388414017,1759161049332,-480.0,0.00024314,2]
[388414018,1759161049341,-480.0,0.00024314,2]
[388414019,1759161049351,-480.0,0.00024314,2]
[388414020,1759161049360,-480.0,0.00024314,2]
[388414021,1759161049370,-894.23,0.00024314,2]
[388414022,1759161049379,-496.23,0.00024314,2]
[388414023,1759161049388,-480.0,0.00024314,2]
[388414024,1759161049398,-480.0,0.00024314,2]
[388414025,1759161049407,-480.0,0.00024314,2]
[388414026,1759161049417,-480.0,0.00024314,2]
[388414027,1759161049426,-480.0,0.00024314,2]
[388414028,1759161049436,-480.0,0.00024314,2]
[388414029,1759161049445,-480.0,0.00024314,2]
[388414030,1759161049454,-480.0,0.00024316,2]
[388414031,1759161049463,-480.0,0.00024316,2]
[388414032,1759161049472,-480.0,0.00024316,2]
[388414033,1759161049482,-480.0,0.00024316,2]
[388414034,1759161049491,-480.0,0.00024316,2]
[388414035,1759161049503,-667.18,0.00024316,2]
[388414036,1759161049512,-480.0,0.00024316,2]
[388414037,1759161049521,-3432.47,0.00024316,2]
[388414038,1759161049531,-1026.99,0.00024316,2]
[388414039,1759161049541,-151.0,0.00024316,7]
[388414040,1759161049550,-508.46,0.00024316,2]
[388414041,1759161049559,-356.249965,0.00024316,7]
[388414042,1759161049569,-356.249965,0.00024316,7]
[388414043,1759161049578,-1286.89,0.00024316,2]
[388414044,1759161049588,-356.249965,0.00024316,7]
[388414045,1759161049597,-356.249965,0.00024316,7]
[388414046,1759161049607,-1219.17,0.00024316,2]
[388414047,1759161049616,-2486.31,0.00024316,2]
[388414048,1759161049626,-1367.48,0.00024316,2]
[388414049,1759161049635,-314.876435,0.00024316,7]
[388414050,1759161049644,-314.876435,0.00024316,7]
[388414051,1759161049654,-314.876435,0.00024316,7]
[388414052,1759161049663,-480.0,0.00024316,2]
[388414053,1759161049673,-151.0,0.00024316,7]
[388414054,1759161049682,-314.876435,0.00024316,7]
[388414055,1759161049691,-151.0,0.00024316,7]
[388414056,1759161049701,-151.0,0.00024316,7]
[388414057,1759161049710,-480.0,0.00024316,2]
[388414058,1759161049720,-631.93,0.00024316,2]
[388414059,1759161049729,-480.0,0.00024316,2]
[388414060,1759161049739,-3773.912547,0.00024316,7]
[388414061,1759161049748,-151.0,0.00024316,7]
[388414062,1759161049760,-3773.912547,0.00024316,7]
[388414063,1759161049770,-3773.912547,0.00024316,7]
[388414064,1759161049779,-3773.912547,0.00024316,7]
[388414065,1759161049789,-2567.53,0.00024316,2]
[388414066,1759161049799,-151.0,0.00024316,7]
[388414067,1759161049808,-759.37,0.00024316,2]
[388414068,1759161049818,-151.0,0.00024316,7]
[388414069,1759161049828,-631.86,0.00024316,2]
[388414070,1759161049838,-1745.76,0.00024316,2]
[388414071,1759161049847,-3016.28,0.00024316,2]
[388414072,1759161049856,-727.88,0.00024316,2]
[388414073,1759161049866,-813.47,0.00024316,2]
[388414074,1759161049875,-1008.07,0.00024316,2]
[388414075,1759161049885,-289.31838238,0.00024316,2]
[388414076,1759161049895,-591.19,0.00024316,2]
[388414077,1759161049904,-151.0,0.00024316,7]
[388414078,1759161049915,-503.14,0.00024316,2]
[388414079,1759161049924,-1909.43,0.00024316,2]
[388414080,1759161049934,-151.0,0.00024316,7]
[388414081,1759161049943,-151.0,0.00024316,7]
[388414082,1759161049952,-151.0,0.00024316,7]
[388414083,1759161049961,-274.489039,0.00024316,7]
[388414084,1759161049970,-734.72,0.00024316,2]
[388414085,1759161049979,-151.0,0.00024316,7]
[388414086,1759161049989,-151.0,0.00024316,7]
[388414087,1759161049999,-151.0,0.00024316,7]
[388414088,1759161050012,-2636.35,0.00024316,2]
[388414089,1759161050022,-770.78,0.00024316,2]
[388414090,1759161050032,-692.37,0.00024316,2]
[388414091,1759161050041,-500.18447299,0.00024316,2]
[388414092,1759161050052,-653.76,0.00024316,2]
[388414093,1759161050065,-11624.81,0.00024316,2]
[388414094,1759161050075,-480.0,0.00024316,2]
[388414095,1759161050087,-233.87608454,0.00024316,7]
[388414096,1759161050098,-2666.6,0.00024316,2]
[388414097,1759161050108,-480.0,0.00024318,2]
[388414098,1759161050118,-480.0,0.00024318,2]
[388414099,1759161050128,-532.20555171,0.00024318,2]
[388414100,1759161050138,-480.0,0.00024318,2]
[388414101,1759161050148,-573.79,0.00024318,2]
[388414102,1759161050157,-480.0,0.00024318,2]
[388414103,1759161050167,-480.0,0.00024318,2]
[388414104,1759161050176,-594.35,0.00024318,2]
[388414105,1759161050186,-480.0,0.00024318,2]
[388414106,1759161050196,-480.0,0.00024318,2]
[388414107,1759161050205,-480.0,0.00024318,2]
[388414108,1759161050215,-634.32,0.00024318,2]
[388414109,1759161050225,-547.3,0.00024318,2]
[388414110,1759161050235,-1428.98,0.00024318,2]
[388414111,1759161050245,-480.0,0.00024318,2]
[388414112,1759161050420,-480.0,0.00024318,2]
[388414113,1759161050431,-480.0,0.00024318,2]
[388414114,1759161050441,-635.14,0.00024318,2]
[388414115,1759161050451,-682.17,0.00024318,2]
[388414116,1759161050461,-480.0,0.00024318,2]
[388414117,1759161050470,-740.77,0.00024318,2]
[388414118,1759161050481,-633.41,0.00024318,2]
[388414119,1759161050491,-534.48,0.00024318,2]
[388414120,1759161050502,-571.16,0.00024318,2]
[388414121,1759161050512,-1481.65,0.00024318,2]
[388414122,1759161050521,-1188.19,0.00024318,2]
[388414123,1759161050531,-1097.36,0.00024318,2]
[388414124,1759161050540,-1174.05,0.00024318,2]
[388414125,1759161050549,-590.48,0.00024318,2]
[388414126,1759161050559,-480.0,0.00024318,2]
[388414127,1759161050568,-480.0,0.00024318,2]
[388414128,1759161050578,-515.21,0.00024318,2]
[388414129,1759161050587,-480.0,0.00024318,2]
[388414130,1759161050595,-1389.25,0.00024318,2]
[388414131,1759161050605,-690.96,0.00024318,2]
[388414132,1759161050614,-650.89,0.00024318,2]
[388414133,1759161050623,-480.0,0.00024318,2]
[388414134,1759161050633,-678.18,0.00024318,2]
[388414135,1759161050642,-480.0,0.00024318,2]
[388414136,1759161050652,-863.9,0.00024318,2]
[388414137,1759161050661,-631.93,0.00024318,2]
[388414138,1759161050671,-151.0,0.00024318,7]
[388414139,1759161050681,-290.839184,0.00024318,7]
[388414140,1759161050691,-153.134971,0.00024318,7]
[388414141,1759161050700,-152.558317,0.00024318,7]
[388414142,1759161050711,-480.0,0.00024318,2]
[388414143,1759161050720,-151.757169,0.00024318,7]
[388414144,1759161050729,-709.13,0.00024318,2]
[388414145,1759161050739,-717.3,0.00024318,2]
[388414146,1759161050748,-325.49924104,0.00024318,2]
[388414147,1759161050759,-151.0,0.00024318,7]
[388414148,1759161050769,-179.070587,0.00024318,7]
[388414149,1759161050778,-480.0,0.00024318,2]
[388414150,1759161050788,-824.18,0.00024318,2]
[388414151,1759161050800,-179.070587,0.00024318,7]
[388414152,1759161050809,-179.070587,0.00024318,7]
[388414153,1759161050818,-179.070587,0.00024318,7]
[388414154,1759161050829,-480.0,0.00024318,2]
[388414155,1759161050839,-870.07,0.00024318,2]
[388414156,1759161050850,-151.0,0.00024318,7]
[388414157,1759161050860,-160.020067,0.00024318,7]
[388414158,1759161050871,-1128.51,0.00024318,2]
[388414159,1759161050886,-151.0,0.00024318,7]
[388414160,1759161050896,-915.42,0.00024318,2]
[388414161,1759161050913,-923.51,0.00024318,2]
[388414162,1759161050923,-151.0,0.00024318,7]
[388414163,1759161050934,-451.895346,0.00024318,7]
[388414164,1759161050950,-151.0,0.00024318,7]
[388414165,1759161050969,-451.895346,0.00024318,7]
[388414166,1759161050989,-159.812187,0.00024318,7]
[388414167,1759161051009,-699.11,0.00024318,2]
[388414168,1759161051025,-451.895346,0.00024318,7]
[388414169,1759161051035,-451.895346,0.00024318,7]
[388414170,1759161051044,-480.25815196,0.00024318,2]
[388414171,1759161051057,-153.807745,0.00024318,7]
[388414172,1759161051075,-153.807745,0.00024318,7]
[388414173,1759161051084,-724.15,0.00024318,2]
[388414174,1759161051095,-153.807745,0.00024318,7]
[388414175,1759161051104,-153.807745,0.00024318,7]
[388414176,1759161051113,-480.0,0.00024318,2]
[388414177,1759161051123,-480.0,0.00024318,2]
[388414178,1759161051132,-151.0,0.00024318,7]
[388414179,1759161051142,-1090.9,0.00024318,2]
[388414180,1759161051152,-151.0,0.00024318,7]
[388414181,1759161051162,-480.0,0.00024318,2]
[388414182,1759161051171,-151.0,0.00024318,7]
[388414183,1759161051180,-3622.36,0.00024318,2]
[388414184,1759161051190,-688.96,0.00024318,2]
[388414185,1759161051200,-2540.65,0.00024318,2]
[388414186,1759161051209,-1027.68,0.00024318,2]
[388414187,1759161051218,-480.0,0.00024318,2]
[388414188,1759161051227,-558.02,0.00024318,2]
[388414189,1759161051236,-1163.36,0.00024318,2]
[388414190,1759161051246,-151.0,0.00024318,7]
[388414191,1759161051256,-151.0,0.00024318,7]
[388414192,1759161051266,-480.0,0.00024318,2]
[388414193,1759161051275,-151.0,0.00024318,7]
[388414194,1759161051284,-480.0,0.00024318,2]
[388414195,1759161051293,-1504.04,0.00024318,2]
[388414196,1759161051301,-151.0,0.00024318,7]
[388414197,1759161051310,-151.0,0.00024318,7]
[388414198,1759161051320,-544.12,0.00024318,2]
[388414199,1759161051329,-1341.37,0.00024318,2]
[388414200,1759161051338,-826.65,0.00024318,2]
[388414201,1759161051347,-1314.02,0.00024318,2]
[388414202,1759161051356,-812.11,0.00024318,2]
[388414203,1759161051364,-480.0,0.00024318,2]
[388414204,1759161051373,-497.20227128,0.00024318,2]
[388414205,1759161051382,-1171.02,0.00024318,2]
[388414206,1759161051391,-151.0,0.00024318,7]
[388414207,1759161051400,-5378.23,0.00024318,2]
[388414208,1759161051409,-151.0,0.00024318,7]
[388414209,1759161051419,-151.631372,0.00024318,7]
[388414210,1759161051428,-151.631372,0.00024318,7]
[388414211,1759161051437,-151.631372,0.00024318,7]
[388414212,1759161051447,-151.631372,0.00024318,7]
[388414213,1759161051457,-2478.27,0.00024318,2]
[388414214,1759161051466,-2439.32,0.00024318,2]
[388414215,1759161051475,-480.0,0.00024318,2]
[388414216,1759161051484,-480.0,0.00024318,2]
[388414217,1759161051493,-549.0,0.00024318,2]
[388414218,1759161051502,-480.0,0.00024318,2]
[388414219,1759161051511,-1277.18,0.00024318,2]
[388414220,1759161051519,-811.93,0.00024318,2]
[388414221,1759161051529,-480.0,0.00024318,2]
[388414222,1759161051537,-5606.18,0.00024318,2]
[388414223,1759161051546,-521.36,0.00024318,2]
[388414224,1759161051555,-151.0,0.00024318,7]
[388414225,1759161051565,-562.06,0.00024318,2]
[388414226,1759161051574,-151.0,0.00024318,7]
[388414227,1759161051584,-2651.6,0.00024318,2]